bitfinex/quotes_BTCUSD_20251202
["timestamp","ask_amount","ask_price","bid_price","bid_amount"]
[1764719363979,0.22954646,91485.0,91483.0,0.07788]
[1764719364226,0.22954646,91485.0,91483.0,0.14166]
[1764719364363,0.22954646,91485.0,91483.0,0.36027879]
[1764719364560,0.01093075,91485.0,91484.0,0.04551]
[1764719364791,0.22954582,91485.0,91484.0,0.10929]
[1764719366027,0.01193075,91485.0,91484.0,0.10929]
[1764719366673,0.23054582,91485.0,91484.0,0.10929]
[1764719368233,0.23054582,91485.0,91484.0,0.04551]
[1764719368433,0.001,91485.0,91484.0,0.10929]
[1764719368639,0.001,91485.0,91484.0,0.32790746]
[1764719370945,0.001,91485.0,91484.0,0.10929]
[1764719371118,0.001,91485.0,91484.0,0.04551]
[1764719371456,0.001,91485.0,91484.0,0.10929]
[1764719371634,0.21961507,91485.0,91484.0,0.10929]
[1764719371835,0.01093147,91479.0,91472.0,0.0109323]
[1764719372069,0.22956339,91478.0,91473.0,0.01093218]
[1764719372274,0.0109317,91477.0,91471.0,0.01093242]
[1764719372482,0.22958316,91472.0,91467.0,0.22959035]
[1764719372685,0.22958316,91472.0,91463.0,0.04330338]
[1764719372686,0.22958316,91472.0,91469.0,0.04339622]
[1764719372888,0.21864875,91471.0,91469.0,0.04339622]
[1764719373092,0.22958316,91472.0,91469.0,0.10717622]
[1764719373294,0.01093182,91476.0,91471.0,0.04551]
[1764719373427,0.22956915,91476.0,91474.0,0.21864095]
[1764719373628,0.22956915,91476.0,91475.0,0.04551]
[1764719373831,0.01093182,91476.0,91475.0,0.04551]
[1764719374449,0.22957029,91477.0,91475.0,0.04551]
[1764719374673,0.21863658,91476.0,91475.0,0.04551]
[1764719375384,0.22957844,91472.0,91469.0,0.04339622]
[1764719375593,0.21865092,91470.0,91469.0,0.04339622]
[1764719376836,0.21865092,91470.0,91469.0,0.02615622]
[1764719377676,0.21865064,91471.0,91469.0,0.02715622]
[1764719378267,0.01093218,91473.0,91471.0,0.03945]
[1764719378670,0.22957806,91474.0,91471.0,0.32878062]
[1764719378875,0.21863984,91475.0,91471.0,0.32878062]
[1764719379038,0.22956888,91476.0,91473.0,0.21864268]
[1764719379300,0.21863951,91475.0,91472.0,0.22957793]
[1764719379511,0.21863951,91475.0,91472.0,0.28932793]
[1764719380052,0.22956876,91476.0,91473.0,0.01093218]
[1764719380254,0.22956876,91476.0,91475.0,0.04004]
[1764719380462,0.22955962,91480.0,91475.0,0.06184]
[1764719380676,0.01093111,91482.0,91479.0,0.06297]
[1764719380921,0.2186268,91481.0,91479.0,0.06297]
[1764719381121,0.21862702,91480.0,91479.0,0.06297]
[1764719381326,0.21862702,91480.0,91479.0,0.02293]
[1764719381991,0.21862702,91480.0,91479.0,0.06297]
[1764719382981,0.21862702,91480.0,91479.0,0.12272]
[1764719383191,0.25146035,91481.0,91479.0,0.12272]
[1764719383386,0.01093087,91484.0,91480.0,0.09979]
[1764719383603,0.26238485,91483.0,91480.0,0.05975]
[1764719383820,0.04376314,91483.0,91481.0,0.05975]
[1764719384028,0.22955162,91483.0,91482.0,0.04004]
[1764719384456,0.22955162,91483.0,91482.0,0.09979]
[1764719385056,0.23055162,91483.0,91482.0,0.09979]
[1764719385427,0.22955162,91483.0,91482.0,0.04004]
[1764719385977,0.23055162,91483.0,91482.0,0.04004]
[1764719386373,0.0109323,91472.0,91465.0,0.01093314]
[1764719386577,0.21865092,91470.0,91469.0,0.04802155]
[1764719386817,0.21865092,91470.0,91469.0,0.02615622]
[1764719386989,0.21865092,91470.0,91469.0,0.12594622]
[1764719387399,0.21864853,91471.0,91469.0,0.12594622]
[1764719387591,0.0109323,91472.0,91470.0,0.09979]
[1764719387592,0.22957855,91472.0,91470.0,0.09979]
[1764719387812,0.22957855,91472.0,91471.0,0.04004]
[1764719388024,0.22957855,91472.0,91471.0,0.09979]
[1764719389011,0.21864519,91473.0,91471.0,0.09979]
[1764719389228,0.21864519,91473.0,91471.0,0.3184376]
[1764719389440,0.21864519,91473.0,91471.0,0.3194376]
[1764719389642,0.21864614,91472.0,91471.0,0.10079]
[1764719390583,0.21864614,91472.0,91471.0,0.09979]
[1764719390953,0.21864614,91472.0,91471.0,0.10079]
[1764719391390,0.21864614,91472.0,91471.0,0.09979]
[1764719391602,0.21864614,91472.0,91471.0,0.10079]
[1764719392014,0.21864614,91472.0,91471.0,0.04104]
[1764719395399,0.21864434,91473.0,91471.0,0.04104]
[1764719395575,0.21864614,91472.0,91471.0,0.04104]
[1764719397531,0.21864614,91472.0,91471.0,0.001]
[1764719400258,0.21864415,91473.0,91471.0,0.001]
[1764719400459,0.21864614,91472.0,91471.0,0.001]
[1764719400956,0.21864415,91473.0,91471.0,0.001]
[1764719401158,0.22955817,91481.0,91472.0,0.09979]
[1764719401322,0.21863937,91475.0,91473.0,0.04004]
[1764719401523,0.21864575,91473.0,91471.0,0.001]
[1764719401928,0.21864458,91473.0,91471.0,0.05975]
[1764719402124,0.22957134,91475.0,91471.0,0.27839795]
[1764719402242,0.21864152,91474.0,91471.0,0.27839795]
[1764719402446,0.22957134,91475.0,91472.0,0.21864514]
[1764719402706,0.22957134,91475.0,91472.0,0.28932744]
[1764719403033,0.21864315,91474.0,91472.0,0.05975]
[1764719403304,0.21864375,91473.0,91472.0,0.05975]
[1764719403765,0.21864375,91473.0,91472.0,0.09979]
[1764719404012,0.0109323,91472.0,91469.0,0.02615622]
[1764719404210,0.25952092,91470.0,91469.0,0.00011622]
[1764719404624,0.31914092,91470.0,91469.0,0.00011622]
[1764719406233,0.32014092,91470.0,91469.0,0.00011622]
[1764719406438,0.32214092,91470.0,91469.0,0.00011622]
[1764719406769,0.34709092,91470.0,91469.0,0.00011622]
[1764719407557,0.34909092,91470.0,91469.0,0.00011622]
[1764719410524,0.69398692,91470.0,91469.0,0.00011622]
[1764719410804,0.61247092,91470.0,91469.0,0.00011622]
[1764719411209,0.67173092,91470.0,91469.0,0.00011622]
[1764719411773,0.58884092,91470.0,91469.0,0.00011622]
[1764719412300,0.57160092,91470.0,91469.0,0.00011622]
[1764719419796,0.67069092,91470.0,91469.0,0.00011622]
[1764719420198,0.69258692,91470.0,91469.0,0.00011622]
[1764719420599,0.67069092,91470.0,91469.0,0.00011622]
[1764719421063,0.69258692,91470.0,91469.0,0.00011622]
[1764719425313,0.67069092,91470.0,91469.0,0.00011622]
[1764719430662,0.68793092,91470.0,91469.0,0.00011622]
[1764719431802,0.67069092,91470.0,91469.0,0.00011622]
[1764719431989,0.68793092,91470.0,91469.0,0.00011622]
[1764719433389,0.71131742,91470.0,91469.0,0.00011622]
[1764719436515,0.69407742,91470.0,91469.0,0.00011622]
[1764719436786,0.71131742,91470.0,91469.0,0.00011622]
[1764719438399,0.003,91470.0,91469.0,0.33438953]
[1764719439432,0.01093123,91481.0,91469.0,0.33438953]
[1764719439433,0.22956325,91479.0,91471.0,0.01093242]
[1764719439653,0.001,91470.0,91469.0,0.02355622]
[1764719439901,0.001,91470.0,91469.0,0.06046622]
[1764719440096,0.2186312,91479.0,91473.0,0.22957524]
[1764719440294,0.21863153,91480.0,91475.0,0.01093194]
[1764719440295,0.02355622,91480.0,91475.0,0.01093194]
[1764719440507,0.21862941,91479.0,91478.0,0.02627]
[1764719440808,0.24218557,91480.0,91478.0,0.02627]
[1764719441000,0.21862941,91479.0,91478.0,0.02627]
[1764719442729,0.21962941,91479.0,91478.0,0.02627]
[1764719443096,0.21962941,91479.0,91478.0,0.11845]
[1764719445410,0.001,91479.0,91478.0,0.11845]
[1764719445792,0.21962941,91479.0,91478.0,0.06318]
[1764719448648,0.001,91479.0,91478.0,0.11845]
[1764719448904,0.001,91479.0,91478.0,0.3370818]
[1764719452734,0.001,91479.0,91478.0,0.3588818]
[1764719453296,0.001,91479.0,91478.0,0.42140479]
[1764719454512,0.2295238,91494.0,91478.0,0.42140479]
[1764719454513,0.323,91497.0,91493.0,0.2295244]
[1764719454710,0.2295261,91493.0,91492.0,0.02344]
[1764719455766,0.21860536,91490.0,91485.0,0.21861292]
[1764719455976,0.01093027,91489.0,91485.0,0.01093075]
[1764719456168,0.21860791,91488.0,91485.0,0.22954563]
[1764719456376,0.01093027,91489.0,91485.0,0.22954563]
[1764719456697,0.21860866,91488.0,91485.0,0.22954563]
[1764719456854,0.01093015,91490.0,91486.0,0.01093063]
[1764719457255,0.21860403,91490.0,91487.0,0.01093051]
[1764719457680,0.22953253,91491.0,91489.0,0.02344]
[1764719457839,0.21860312,91490.0,91489.0,0.02344]
[1764719458039,0.22953253,91491.0,91489.0,0.02344]
[1764719458482,0.21860312,91490.0,91489.0,0.02344]
[1764719462629,0.01092991,91492.0,91489.0,0.06035]
[1764719462841,0.01092991,91492.0,91490.0,0.05527]
[1764719462842,0.21859834,91492.0,91490.0,0.05527]
[1764719463042,0.21859834,91492.0,91489.0,0.06035]
[1764719463043,0.22952825,91492.0,91489.0,0.02344]
[1764719463218,0.21860111,91491.0,91489.0,0.07871]
[1764719463423,0.22952825,91492.0,91489.0,0.07871]
[1764719463622,0.22952601,91493.0,91491.0,0.03691]
[1764719463821,0.21959834,91492.0,91491.0,0.03691]
[1764719464245,0.22059834,91492.0,91491.0,0.03691]
[1764719464484,0.22952601,91493.0,91491.0,0.09218]
[1764719464820,0.23052601,91493.0,91491.0,0.09218]
[1764719465020,0.21859148,91495.0,91491.0,0.32170977]
[1764719465224,0.21859595,91493.0,91491.0,0.09218]
[1764719465451,0.01092967,91494.0,91491.0,0.31078058]
[1764719465452,0.001,91492.0,91491.0,0.31078058]
[1764719465650,0.22952527,91494.0,91491.0,0.31078058]
[1764719465813,0.001,91493.0,91492.0,0.21859825]
[1764719466011,0.002,91493.0,91492.0,0.21859825]
[1764719466237,0.001,91493.0,91491.0,0.27387058]
[1764719466441,0.001,91493.0,91492.0,0.21859834]
[1764719467175,0.01092967,91494.0,91492.0,0.21859834]
[1764719467438,0.001,91493.0,91492.0,0.21859834]
[1764719467644,0.001,91493.0,91491.0,0.28480061]
[1764719468349,0.001,91493.0,91492.0,0.30781834]
[1764719468769,0.323,91499.0,91497.0,0.21858631]
[1764719468970,0.21858384,91499.0,91498.0,0.0577]
[1764719469180,0.21858384,91499.0,91498.0,0.0215]
[1764719469963,0.002,91499.0,91498.0,0.0215]
[1764719470222,0.2295099,91500.0,91498.0,0.0215]
[1764719470415,0.21958162,91499.0,91498.0,0.0215]
[1764719470620,0.22158162,91499.0,91498.0,0.0215]
[1764719471005,0.22058162,91499.0,91498.0,0.0215]
[1764719471150,0.22158162,91499.0,91498.0,0.0215]
[1764719471355,0.21859595,91493.0,91492.0,0.05302]
[1764719471555,0.21859595,91493.0,91484.0,0.01093087]
[1764719471556,0.01093015,91490.0,91486.0,0.01093063]
[1764719471741,0.22953369,91490.0,91486.0,0.22954124]
[1764719472073,0.22953369,91490.0,91486.0,0.28256124]
[1764719472302,0.22953361,91490.0,91487.0,0.22953892]
[1764719472457,0.21859382,91494.0,91487.0,0.22953892]
[1764719472458,0.001,91499.0,91495.0,0.22952007]
[1764719472676,0.001,91499.0,91498.0,0.0577]
[1764719473227,0.001,91499.0,91498.0,0.11072]
[1764719473431,0.00023375,91503.0,91502.0,0.21857445]
[1764719473548,0.01092872,91502.0,91498.0,0.0215]
[1764719473747,0.2185931,91495.0,91493.0,0.0215]
[1764719473953,0.22951974,91496.0,91493.0,0.0215]
[1764719474151,0.0109292,91498.0,91494.0,0.01092967]
[1764719474402,0.22951613,91497.0,91493.0,0.0433]
[1764719474597,0.21858898,91496.0,91493.0,0.27282519]
[1764719475130,0.21858905,91496.0,91493.0,0.05422979]
[1764719475331,0.2185935,91495.0,91493.0,0.0433]
[1764719475478,0.22952293,91496.0,91493.0,0.26189525]
[1764719475679,0.2185918,91495.0,91493.0,0.0433]
[1764719475879,0.22951858,91496.0,91493.0,0.26189507]
[1764719476079,0.001,91496.0,91493.0,0.27282486]
[1764719476390,0.001,91496.0,91493.0,0.27282449]
[1764719476596,0.01092943,91496.0,91493.0,0.05422979]
[1764719476819,0.21959164,91495.0,91493.0,0.26189553]
[1764719477418,0.001,91495.0,91494.0,0.21859356]
[1764719477647,0.001,91495.0,91493.0,0.26189542]
[1764719477989,0.21858968,91496.0,91493.0,0.26189397]
[1764719478275,0.21859356,91494.0,91493.0,0.0215]
[1764719479216,0.21959356,91494.0,91493.0,0.0215]
[1764719479942,0.21959356,91494.0,91483.0,0.02344]
[1764719479943,0.01093063,91486.0,91483.0,0.02344]
[1764719480125,0.21861088,91487.0,91483.0,0.25298874]
[1764719480326,0.01093063,91486.0,91483.0,0.02344]
[1764719480687,0.21861701,91485.0,91483.0,0.02344]
[1764719480834,0.22954388,91486.0,91483.0,0.02344]
[1764719481038,0.22954388,91486.0,91483.0,0.24305944]
[1764719481411,0.22954388,91486.0,91484.0,0.2186173]
[1764719481815,0.21861507,91485.0,91483.0,0.07746]
[1764719482472,0.01093039,91488.0,91483.0,0.2960791]
[1764719482473,0.22954535,91487.0,91483.0,0.2960791]
[1764719482673,0.01093027,91489.0,91484.0,0.01093087]
[1764719482913,0.2295369,91489.0,91486.0,0.0362]
[1764719483138,0.21861029,91487.0,91486.0,0.0362]
[1764719483460,0.21861029,91487.0,91486.0,0.08922]
[1764719484651,0.21861029,91487.0,91486.0,0.0362]
[1764719484765,0.21861746,91484.0,91483.0,0.02344]
[1764719486759,0.21861746,91484.0,91478.0,0.02627]
[1764719486760,0.21862941,91479.0,91478.0,0.02627]
[1764719486964,0.21863448,91477.0,91474.0,0.01724]
[1764719487168,0.21863671,91476.0,91474.0,0.01724]
[1764719487366,0.21863897,91475.0,91474.0,0.01724]
[1764719487568,0.21863671,91476.0,91474.0,0.07026]
[1764719487923,0.21863897,91475.0,91474.0,0.07026]
[1764719488209,0.21863671,91476.0,91474.0,0.01824]
[1764719488380,0.21863671,91476.0,91475.0,0.08922]
[1764719488705,0.21863671,91476.0,91475.0,0.0362]
[1764719488970,0.21863671,91476.0,91474.0,0.001]
[1764719488971,0.21863897,91475.0,91474.0,0.001]
[1764719489857,0.21864136,91474.0,91473.0,0.02344]
[1764719492190,0.21964136,91474.0,91473.0,0.02344]
[1764719496642,0.21964136,91474.0,91451.0,0.0163551]
[1764719496643,0.2186633,91465.0,91464.0,0.02186652]
[1764719496792,0.2186633,91465.0,91464.0,0.00011622]
[1764719497862,0.3000433,91465.0,91464.0,0.00011622]
[1764719498285,0.2506033,91465.0,91464.0,0.00011622]
[1764719498487,0.2196633,91465.0,91464.0,0.00011622]
[1764719498694,0.2186633,91465.0,91464.0,0.00011622]
[1764719498891,0.2186633,91465.0,91464.0,0.00211622]
[1764719499401,0.2186633,91465.0,91464.0,0.00011622]
[1764719499630,0.2186633,91465.0,91464.0,0.00111622]
[1764719499982,0.2196633,91465.0,91464.0,0.00111622]
[1764719505412,0.3007533,91465.0,91464.0,0.00111622]
[1764719506427,0.2997533,91465.0,91464.0,0.00011622]
[1764719506737,0.3007533,91465.0,91464.0,0.00011622]
[1764719506938,0.3027533,91465.0,91464.0,0.00011622]
[1764719507141,0.2527933,91465.0,91464.0,0.00011622]
[1764719507973,0.2216633,91465.0,91464.0,0.00011622]
[1764719512707,0.2716233,91465.0,91464.0,0.00011622]
[1764719514706,0.2216633,91465.0,91464.0,0.00011622]
[1764719521645,0.003,91465.0,91464.0,0.32448148]
[1764719521849,0.003,91465.0,91464.0,0.34172148]
[1764719521978,0.003,91465.0,91464.0,0.42604447]
[1764719522322,0.003,91465.0,91464.0,0.36352148]
[1764719522622,0.001,91465.0,91464.0,0.36352148]
[1764719522824,0.003,91465.0,91464.0,0.36352148]
[1764719523054,0.003,91465.0,91464.0,0.05724622]
[1764719523261,0.003,91465.0,91464.0,0.27591148]
[1764719523413,0.002,91465.0,91464.0,0.27591148]
[1764719523618,0.002,91465.0,91464.0,0.32448148]
[1764719524020,0.005,91465.0,91464.0,0.10581622]
[1764719524211,0.005,91465.0,91464.0,0.32448148]
[1764719524413,0.006,91465.0,91464.0,0.32448148]
[1764719526752,0.006,91465.0,91464.0,0.27591148]
[1764719526957,0.006,91465.0,91464.0,0.05724622]
[1764719527357,0.006,91465.0,91464.0,0.27591148]
[1764719527538,0.006,91465.0,91464.0,0.05724622]
[1764719527702,0.006,91465.0,91464.0,0.27591148]
[1764719527908,0.006,91465.0,91464.0,0.05724622]
[1764719528108,0.22466287,91465.0,91464.0,0.02355622]
[1764719528776,0.006,91465.0,91464.0,0.02355622]
[1764719529340,0.006,91465.0,91464.0,0.05472622]
[1764719529538,0.006,91465.0,91464.0,0.10007622]
[1764719529737,0.006,91465.0,91464.0,0.31874148]
[1764719530059,0.006,91465.0,91464.0,0.10007622]
[1764719530265,0.006,91465.0,91464.0,0.31874148]
[1764719535238,0.006,91465.0,91464.0,0.02355622]
[1764719535858,0.006,91465.0,91464.0,0.24222148]
[1764719537273,0.006,91465.0,91464.0,0.02355622]
[1764719537731,0.006,91465.0,91464.0,0.24222148]
[1764719537961,0.006,91465.0,91464.0,0.02355622]
[1764719538207,0.22466287,91465.0,91464.0,0.00011622]
[1764719538405,0.006,91465.0,91464.0,0.21878148]
[1764719538648,0.006,91465.0,91464.0,0.00011622]
[1764719539035,0.29819287,91465.0,91464.0,0.00011622]
[1764719543233,0.29219287,91465.0,91464.0,0.00011622]
[1764719543616,0.29919287,91465.0,91464.0,0.00011622]
[1764719544229,0.22566287,91465.0,91464.0,0.00011622]
[1764719544800,0.007,91465.0,91464.0,0.07663622]
[1764719545008,0.007,91465.0,91464.0,0.29530148]
[1764719545697,0.006,91465.0,91464.0,0.29530148]
[1764719545902,0.21863689,91476.0,91472.0,0.22957821]
[1764719546098,0.21863939,91475.0,91472.0,0.0109323]
[1764719546353,0.22956871,91476.0,91473.0,0.02187]
[1764719546874,0.22956914,91476.0,91473.0,0.03280218]
[1764719547075,0.01093182,91476.0,91474.0,0.21864069]
[1764719547477,0.005,91475.0,91474.0,0.21864069]
[1764719547681,0.22956868,91476.0,91473.0,0.03280218]
[1764719547837,0.21864136,91474.0,91473.0,0.02187]
[1764719548049,0.21864136,91474.0,91473.0,0.06722]
[1764719548263,0.21864136,91474.0,91473.0,0.09839]
[1764719548462,0.002,91476.0,91473.0,0.10932218]
[1764719548850,0.21863689,91476.0,91473.0,0.32796584]
[1764719549179,0.001,91474.0,91473.0,0.32796584]
[1764719549613,0.23456871,91476.0,91473.0,0.32796584]
[1764719550009,0.23656871,91476.0,91473.0,0.32796584]
[1764719550354,0.01293182,91476.0,91474.0,0.21864095]
[1764719550768,0.22063709,91476.0,91473.0,0.29679578]
[1764719550980,0.22063709,91476.0,91473.0,0.02187]
[1764719550981,0.21863897,91475.0,91473.0,0.02187]
[1764719552488,0.22063897,91475.0,91473.0,0.02187]
[1764719553348,0.21864136,91474.0,91473.0,0.02187]
[1764719553550,0.22563897,91475.0,91463.0,0.01986]
[1764719553551,0.2186557,91468.0,91463.0,0.01986]
[1764719553954,0.2186557,91468.0,91463.0,0.03079338]
[1764719554134,0.2186557,91468.0,91464.0,0.01104948]
[1764719554336,0.2186557,91468.0,91464.0,0.00011622]
[1764719555131,0.21866287,91465.0,91464.0,0.00011622]
[1764719556216,0.22166287,91465.0,91464.0,0.00011622]
[1764719556419,0.25295287,91465.0,91464.0,0.00011622]
[1764719556644,0.29876287,91465.0,91464.0,0.00011622]
[1764719556855,1.81538487,91465.0,91464.0,0.00011622]
[1764719557188,1.81538487,91465.0,91419.0,0.0214]
[1764719557189,0.21873462,91435.0,91419.0,0.0214]
[1764719557395,0.21875496,91427.0,91419.0,0.07539864]
[1764719557598,0.01093792,91425.0,91422.0,0.01982653]
[1764719557800,0.21876333,91423.0,91422.0,0.01982653]
[1764719558223,0.21876333,91423.0,91422.0,0.04958653]
[1764719558433,0.21876333,91423.0,91422.0,0.09264653]
[1764719558640,0.21876333,91423.0,91422.0,0.00038653]
[1764719560646,0.22276333,91423.0,91422.0,0.00038653]
[1764719563755,0.22276333,91423.0,91422.0,0.03014653]
[1764719564341,0.004,91423.0,91422.0,0.07320653]
[1764719564806,0.004,91423.0,91422.0,0.31384882]
[1764719565095,0.004,91423.0,91422.0,0.37629524]
[1764719565303,0.00064731,91423.0,91422.0,0.37629524]
[1764719565505,0.01093517,91448.0,91444.0,0.01093565]
[1764719565676,0.22963473,91450.0,91447.0,0.04985]
[1764719565878,0.21870125,91449.0,91447.0,0.02009]
[1764719566086,0.21870125,91449.0,91447.0,0.06315]
[1764719566287,0.21870123,91449.0,91447.0,0.06315]
[1764719566610,0.22963489,91450.0,91447.0,0.06315]
[1764719566812,0.22963288,91451.0,91449.0,0.0492]
[1764719567051,0.004,91450.0,91449.0,0.0492]
[1764719567244,0.004,91450.0,91449.0,0.01944]
[1764719567405,0.004,91450.0,91449.0,0.0492]
[1764719568047,0.004,91450.0,91449.0,0.09226]
[1764719568206,0.005,91450.0,91449.0,0.09226]
[1764719568445,0.001,91450.0,91449.0,0.09226]
[1764719569195,0.21969874,91450.0,91449.0,0.09226]
[1764719569508,0.22269874,91450.0,91449.0,0.01944]
[1764719569634,0.22169874,91450.0,91449.0,0.01944]
[1764719570075,0.22269874,91450.0,91449.0,0.01944]
[1764719570651,0.01093529,91447.0,91441.0,0.02009]
[1764719570845,0.22964609,91446.0,91442.0,0.01093589]
[1764719571051,0.2187109,91445.0,91442.0,0.22965143]
[1764719571477,0.21871397,91444.0,91441.0,0.02009]
[1764719571796,0.21871397,91444.0,91442.0,0.04306]
[1764719572792,0.21871548,91443.0,91442.0,0.04306]
[1764719572996,0.21871397,91444.0,91442.0,0.04306]
[1764719573345,0.22071397,91444.0,91442.0,0.07282]
[1764719573742,0.22171397,91444.0,91442.0,0.07282]
[1764719574169,0.22171397,91444.0,91442.0,0.02976]
[1764719574380,0.21971397,91444.0,91442.0,0.07282]
[1764719574552,0.001,91444.0,91442.0,0.29153577]
[1764719574761,0.003,91444.0,91443.0,0.02976]
[1764719574911,0.22171309,91444.0,91443.0,0.07282]
[1764719575522,0.003,91444.0,91443.0,0.07282]
[1764719575729,0.002,91444.0,91443.0,0.29153548]
[1764719575961,0.22964431,91446.0,91443.0,0.29153548]
[1764719576160,0.003,91444.0,91443.0,0.29153548]
[1764719576362,0.003,91444.0,91443.0,0.07282]
[1764719576565,0.22171309,91444.0,91443.0,0.07282]
[1764719576789,0.22071309,91444.0,91443.0,0.07282]
[1764719577703,0.002,91444.0,91443.0,0.29153548]
[1764719577901,0.002,91444.0,91443.0,0.07282]
[1764719578204,0.22071309,91444.0,91443.0,0.07282]
[1764719578723,0.22071309,91444.0,91443.0,0.07334644]
[1764719578883,0.002,91444.0,91443.0,0.07334644]
[1764719579402,0.003,91444.0,91443.0,0.07334644]
[1764719579598,0.003,91444.0,91443.0,0.31386192]
[1764719582435,0.003,91444.0,91443.0,0.37638491]
[1764719582605,0.01728,91483.0,91471.0,0.01093242]
[1764719582606,0.22957111,91475.0,91471.0,0.01093242]
[1764719582817,0.22957368,91474.0,91470.0,0.02976]
[1764719583041,0.21864638,91472.0,91470.0,0.02976]
[1764719583224,0.22957593,91473.0,91472.0,0.01888]
[1764719583452,0.22958201,91471.0,91466.0,0.21865988]
[1764719583701,0.21865279,91470.0,91466.0,0.21530415]
[1764719583873,0.01093254,91470.0,91466.0,0.26929717]
[1764719584079,0.22958387,91470.0,91467.0,0.04306]
[1764719584282,0.2186557,91468.0,91467.0,0.04306]
[1764719584490,0.2186557,91468.0,91467.0,0.07282]
[1764719585541,0.002,91468.0,91467.0,0.07282]
[1764719585772,0.002,91468.0,91467.0,0.29147809]
[1764719586700,0.003,91468.0,91467.0,0.29147809]
[1764719588401,0.001,91468.0,91467.0,0.29147809]
[1764719588583,0.00011607,91471.0,91468.0,0.21865355]
[1764719588786,0.00011607,91471.0,91470.0,0.24552092]
[1764719589189,0.00011607,91471.0,91470.0,0.28938092]
[1764719589810,0.00111607,91471.0,91470.0,0.28938092]
[1764719590123,0.00011607,91471.0,91470.0,0.30826092]
[1764719590685,0.2187646,91471.0,91470.0,0.08961]
[1764719590887,0.2197646,91471.0,91470.0,0.08961]
[1764719591114,0.2197646,91471.0,91448.0,0.01888]
[1764719591115,0.218682,91457.0,91448.0,0.01888]
[1764719591323,0.21867939,91459.0,91453.0,0.01116852]
[1764719591547,0.01093326,91464.0,91458.0,0.02687]
[1764719591548,0.22960732,91461.0,91458.0,0.02687]
[1764719591852,0.22960818,91461.0,91459.0,0.04386]
[1764719592031,0.21867483,91460.0,91459.0,0.04386]
[1764719592453,0.218682,91457.0,91454.0,0.0218]
[1764719592848,0.218682,91457.0,91453.0,0.00023395]
[1764719593615,0.21868917,91454.0,91453.0,0.00023395]
[1764719595581,0.21968917,91454.0,91453.0,0.02710395]
[1764719596280,0.21968917,91454.0,91453.0,0.00023395]
[1764719596720,0.29217917,91454.0,91453.0,0.00023395]
[1764719596952,0.31407517,91454.0,91453.0,0.00023395]
[1764719597127,0.29217917,91454.0,91453.0,0.00023395]
[1764719597325,0.31407517,91454.0,91453.0,0.00023395]
[1764719598027,0.31607517,91454.0,91453.0,0.00023395]
[1764719598230,0.31507517,91454.0,91453.0,0.00023395]
[1764719598568,0.31607517,91454.0,91453.0,0.00023395]
[1764719598976,0.31507517,91454.0,91453.0,0.00023395]
[1764719599379,0.31607517,91454.0,91453.0,0.00023395]
[1764719599587,0.63907517,91454.0,91453.0,0.00023395]
[1764719599845,0.61717917,91454.0,91453.0,0.00023395]
[1764719600045,0.66239117,91454.0,91453.0,0.00023395]
[1764719600197,0.66139117,91454.0,91453.0,0.00023395]
[1764719600612,0.65939117,91454.0,91453.0,0.00023395]
[1764719600830,0.99404017,91454.0,91453.0,0.00023395]
[1764719601189,0.99704017,91454.0,91453.0,0.00023395]
[1764719601525,0.99804017,91454.0,91453.0,0.00023395]
[1764719601726,0.99804017,91454.0,91453.0,1e-08]
[1764719601928,1.03687025,91454.0,91453.0,1e-08]
[1764719602245,1.07911422,91454.0,91453.0,1e-08]
[1764719602446,1.08111422,91454.0,91453.0,1e-08]
[1764719602648,1.07811422,91454.0,91453.0,1e-08]
[1764719602817,1.08311422,91454.0,91453.0,1e-08]
[1764719603020,1.083086,91454.0,91453.0,1e-08]
[1764719604174,1.101966,91454.0,91453.0,1e-08]
[1764719608307,1.13101584,91454.0,91453.0,1e-08]
[1764719608718,1.101966,91454.0,91453.0,1e-08]
[1764719609472,1.13101054,91454.0,91453.0,1e-08]
[1764719610393,1.101966,91454.0,91453.0,1e-08]
[1764719611485,1.13101054,91454.0,91453.0,1e-08]
[1764719611824,1.119246,91454.0,91453.0,1e-08]
[1764719612234,1.101966,91454.0,91453.0,1e-08]
[1764719612438,1.09735,91454.0,91453.0,1e-08]
[1764719612641,1.114246,91454.0,91453.0,1e-08]
[1764719613042,1.119246,91454.0,91453.0,1e-08]
[1764719613264,1.03217195,91454.0,91453.0,1e-08]
[1764719613461,1.03017195,91454.0,91453.0,1e-08]
[1764719613702,1.03317195,91454.0,91453.0,1e-08]
[1764719613870,1.03517195,91454.0,91453.0,1e-08]
[1764719614288,1.03217195,91454.0,91453.0,1e-08]
[1764719614791,1.09969494,91454.0,91453.0,1e-08]
[1764719615171,1.08241494,91454.0,91453.0,1e-08]
[1764719615375,1.03717195,91454.0,91453.0,1e-08]
[1764719616122,1.03217195,91454.0,91453.0,1e-08]
[1764719616323,1.03717195,91454.0,91453.0,1e-08]
[1764719616459,1.03517195,91454.0,91453.0,1e-08]
[1764719616659,1.03717195,91454.0,91453.0,1e-08]
[1764719618201,1.01989195,91454.0,91453.0,1e-08]
[1764719618783,0.68652595,91454.0,91453.0,1e-08]
[1764719619026,0.65215595,91454.0,91453.0,1e-08]
[1764719619203,0.97515595,91454.0,91453.0,1e-08]
[1764719619405,0.97315595,91454.0,91453.0,1e-08]
[1764719619605,0.96815595,91454.0,91453.0,1e-08]
[1764719619813,0.97315595,91454.0,91453.0,1e-08]
[1764719622347,1.0022094,91454.0,91453.0,1e-08]
[1764719623516,0.97315595,91454.0,91453.0,1e-08]
[1764719630164,1.03149903,91454.0,91453.0,1e-08]
[1764719632002,0.97315595,91454.0,91453.0,1e-08]
[1764719635548,0.01093792,91425.0,91422.0,0.01473]
[1764719635758,0.01093792,91425.0,91422.0,0.05405]
[1764719635979,0.22969646,91425.0,91424.0,0.02613]
[1764719636742,0.22969646,91425.0,91424.0,0.06583653]
[1764719637530,0.23069646,91425.0,91424.0,0.06583653]
[1764719638009,0.22969646,91425.0,91424.0,0.06583653]
[1764719638203,0.22969646,91425.0,91424.0,0.02651653]
[1764719638405,0.23069646,91425.0,91424.0,0.02651653]
[1764719638937,0.23069646,91425.0,91424.0,0.02851653]
[1764719640215,0.23069646,91425.0,91424.0,0.00238653]
[1764719641187,0.23069646,91425.0,91424.0,0.0032349]
[1764719645335,0.29514646,91425.0,91424.0,0.0032349]
[1764719647048,0.29414646,91425.0,91424.0,0.0032349]
[1764719647376,0.29514646,91425.0,91424.0,0.0032349]